[Event "Baden Youth-ch 2020"]
[Site "Karlsruhe-Durlach"]
[Date "2020.01.05"]
[Round "5.6"]
[White "Henninger, Claire"]
[Black "Schneider, Katharina"]
[Result "0-1"]
[ECO "C69"]
[WhiteElo "1507"]
[BlackElo "1672"]
[Annotator "NA"]
[PlyCount "178"]
[EventDate "2020.01.02"]
[EventType "swiss"]
[EventCountry "GER"]
[SourceTitle "playchess.com"]
[Source "ChessBase"]
[SourceQuality "1"]
[TimeControl "5400+30"]

1. e4 {[%emt 0:00:00]} e5 {[%emt 0:00:00]} 2. Nf3 {[%emt 0:00:00]} Nc6 {[%emt 0:00:00]} 3. Bb5 {[%emt 0:00:00]} a6 {[%emt 0:00:00]} 4. Bxc6 {[%emt 0:00:16]} dxc6 {[%emt 0:00:00]} 5. O-O {[%emt 0:00:17]} f6 {[%emt 0:01:44]} 6. d4 {[%emt 0:00:52]} exd4 {[%emt 0:00:54]} 7. Nxd4 {[%emt 0:01:17]} c5 {[%emt 0:00:52]} 8. Nb3 {[%emt 0:00:49]} Qxd1 {[%emt 0:02:35]} 9. Rxd1 {[%emt 0:00:20]} Bg4 {[%emt 0:04:41]} 10. f3 {[%emt 0:04:30]} Be6 {[%emt 0:02:05]} 11. Bf4 {[%emt 0:05:31]} Rd8 {[%emt 0:08:28]} 12. Nc3 {[%emt 0:04:28]} c4 {[%emt 0:09:01]} 13. Na5 {[%emt 0:13:43]} Bc5+ {[%emt 0:02:10]} 14. Kf1 {[%emt 0:01:13]} Bb6 {[%emt 0:03:58]} 15. b4 {[%emt 0:04:53]} cxb3 {[%emt 0:18:19]} 16. axb3 {[%emt 0:05:02]} Rxd1+ {[%emt 0:03:54]} 17. Nxd1 {[%emt 0:01:01]} Bxa5 {[%emt 0:03:51]} 18. Rxa5 {[%emt 0:00:21]} c6 {[%emt 0:00:19]} 19. Nc3 {[%emt 0:04:44]} Ne7 {[%emt 0:03:50]} 20. Na4 {[%emt 0:03:12]} Kf7 {[%emt 0:03:12]} 21. Bc7 {[%emt 0:02:51]} f5 {[%emt 0:04:49]} 22. Nc5 {[%emt 0:06:43]} Bc8 {[%emt 0:01:33]} 23. c4 {[%emt 0:04:22]} fxe4 {[%emt 0:02:55]} 24. Nxe4 {[%emt 0:06:02]} Nf5 {[%emt 0:01:35]} 25. g4 {[%emt 0:04:33]} Nd4 {[%emt 0:01:56]} 26. Nd2 {[%emt 0:10:02]} Kg6 {[%emt 0:03:19]} 27. Bb6 {[%emt 0:02:27]} Nc2 {[%emt 0:00:48]} 28. Re5 {[%emt 0:01:45]} Nb4 {[%emt 0:01:42]} 29. Re3 {[%emt 0:01:34]} h5 {[%emt 0:02:06]} 30. h3 {[%emt 0:02:20]} hxg4 {[%emt 0:00:56]} 31. fxg4 {[%emt 0:00:33]} Rf8+ {[%emt 0:01:03]} 32. Ke2 {[%emt 0:00:39]} Nc2 {[%emt 0:01:57]} 33. Rc3 {[%emt 0:01:51]} Re8+ {[%emt 0:00:32]} 34. Kf2 {[%emt 0:00:38]} Rf8+ {[%emt 0:01:03]} 35. Ke2 {[%emt 0:00:45]} Re8+ {[%emt 0:00:13]} 36. Kf2 {[%emt 0:00:39]} Rf8+ {[%emt 0:01:19]} 37. Ke2 {[%emt 0:04:28]} Re8+ {[%emt 0:01:11]} 38. Kd1 {[%emt 0:00:11]} Ne1 {[%emt 0:10:10]} 39. Bf2 {[%emt 0:01:12]} Ng2 {[%emt 0:00:00]} 40. Rg3 {[%emt 0:00:32]} Nf4 {[%emt 0:00:00]} 41. Rf3 {[%emt 0:00:21]} Nxh3 {[%emt 0:00:00]} 42. Rxh3 {[%emt 0:00:36]} Bxg4+ {[%emt 0:00:00]} 43. Rf3 {[%emt 0:00:26]} Rf8 {[%emt 0:00:00]} 44. Ke2 {[%emt 0:00:22]} Bxf3+ {[%emt 0:00:00]} 45. Nxf3 {[%emt 0:00:07]} Kf5 {[%emt 0:00:00]} 46. Bd4 {[%emt 0:01:58]} Ke4 {[%emt 0:00:00]} 47. Ng5+ {[%emt 0:00:58]} Kxd4 {[%emt 0:00:00]} 48. Ne6+ {[%emt 0:00:08]} Kc3 {[%emt 0:00:00]} 49. Nxf8 {[%emt 0:00:11]} Kxb3 {[%emt 0:00:00]} 50. c5 {[%emt 0:00:44]} Kc4 {[%emt 0:00:00]} 51. Ne6 {[%emt 0:00:43]} a5 {[%emt 0:01:42]} 52. Kd2 {[%emt 0:00:15]} g6 {[%emt 0:02:14]} 53. Kc2 {[%emt 0:00:27]} Kd5 {[%emt 0:00:38]} 54. Nf4+ {[%emt 0:00:11]} Kxc5 {[%emt 0:00:06]} 55. Nxg6 {[%emt 0:00:05]} b5 {[%emt 0:00:36]} 56. Nf4 {[%emt 0:00:15]} Kc4 {[%emt 0:00:20]} 57. Nd3 {[%emt 0:01:00]} a4 {[%emt 0:00:50]} 58. Ne5+ {[%emt 0:00:58]} Kd5 {[%emt 0:00:06]} 59. Nd3 {[%emt 0:00:23]} c5 {[%emt 0:00:50]} 60. Kc3 {[%emt 0:00:53]} a3 {[%emt 0:00:22]} 61. Nc1 {[%emt 0:01:04]} b4+ {[%emt 0:01:05]} 62. Kb3 {[%emt 0:00:32]} Kd4 {[%emt 0:00:26]} 63. Ne2+ {[%emt 0:00:18]} Kd3 {[%emt 0:00:58]} 64. Nc1+ {[%emt 0:00:27]} Kd2 {[%emt 0:00:18]} 65. Na2 {[%emt 0:00:23]} Kd1 {[%emt 0:00:25]} 66. Kc4 {[%emt 0:01:59]} Kc2 {[%emt 0:00:13]} 67. Kxc5 {[%emt 0:00:35]} b3 {[%emt 0:00:16]} 68. Nb4+ {[%emt 0:00:30]} Kc3 {[%emt 0:01:15]} 69. Nd5+ {[%emt 0:00:26]} Kb2 {[%emt 0:00:20]} 70. Kb4 {[%emt 0:00:38]} a2 {[%emt 0:00:18]} 71. Ne3 {[%emt 0:00:26]} a1=Q {[%emt 0:00:29]} 72. Nc4+ {[%emt 0:00:26]} Ka2 {[%emt 0:00:28]} 73. Nd2 {[%emt 0:00:38]} Qd4+ {[%emt 0:00:09]} 74. Nc4 {[%emt 0:00:11]} Qxc4+ {[%emt 0:00:08]} 75. Kxc4 {[%emt 0:00:05]} b2 {[%emt 0:00:04]} 76. Kc3 {[%emt 0:00:03]} b1=Q {[%emt 0:00:06]} 77. Kc4 {[%emt 0:00:02]} Qb6 {[%emt 0:00:10]} 78. Kc3 {[%emt 0:00:04]} Qb5 {[%emt 0:00:16]} 79. Kd4 {[%emt 0:00:06]} Qf5 {[%emt 0:00:25]} 80. Ke3 {[%emt 0:00:06]} Qg4 {[%emt 0:00:11]} 81. Kf2 {[%emt 0:00:01]} Qh3 {[%emt 0:00:09]} 82. Kg1 {[%emt 0:00:06]} Qf3 {[%emt 0:00:58]} 83. Kh2 {[%emt 0:00:04]} Qg4 {[%emt 0:00:05]} 84. Kh1 {[%emt 0:00:04]} Kb2 {[%emt 0:00:04]} 85. Kh2 {[%emt 0:00:04]} Kc2 {[%emt 0:00:03]} 86. Kh1 {[%emt 0:00:06]} Kd2 {[%emt 0:00:04]} 87. Kh2 {[%emt 0:00:02]} Ke2 {[%emt 0:00:06]} 88. Kh1 {[%emt 0:00:05]} Kf2 {[%emt 0:00:07]} 89. Kh2 {[%emt 0:00:06]} Qg2# {[%emt 0:08:10]} 0-1

[Event "Baden Youth-ch 2020"]
[Site "Karlsruhe-Durlach"]
[Date "2020.01.05"]
[Round "5.7"]
[White "Doll, Alexander"]
[Black "Nass, Maximilian"]
[Result "1-0"]
[ECO "B32"]
[WhiteElo "2127"]
[BlackElo "1937"]
[Annotator "ChessBase"]
[PlyCount "105"]
[EventDate "2020.01.02"]
[EventType "swiss"]
[EventCountry "GER"]
[SourceTitle "playchess.com"]
[Source "ChessBase"]
[SourceQuality "1"]
[TimeControl "5400+30"]

1. e4 {[%emt 0:00:00]} c5 {[%emt 0:00:00]} 2. Nf3 {[%emt 0:00:00]} Nc6 {[%emt 0:00:00]} 3. d4 {[%emt 0:01:01]} cxd4 {[%emt 0:00:22]} 4. Nxd4 {[%emt 0:00:02]} e5 {[%emt 0:00:20]} 5. Nb5 {[%emt 0:00:09]} d6 {[%emt 0:00:16]} 6. N1c3 {[%emt 0:00:11]} a6 {[%emt 0:00:09]} 7. Na3 {[%emt 0:00:05]} Be6 {[%emt 0:02:36]} 8. Nd5 {[%emt 0:02:53]} Rc8 {[%emt 0:07:32]} 9. Be3 {[%emt 0:07:10]} Bxd5 {[%emt 0:01:57]} 10. exd5 {[%emt 0:01:32]} Qa5+ {[%emt 0:05:02]} 11. c3 {[%emt 0:09:37]} Nce7 {[%emt 0:06:31]} 12. Nc4 {[%emt 0:01:04]} Qc7 {[%emt 0:05:11]} 13. Bb6 {[%emt 0:01:37]} Qd7 {[%emt 0:01:40]} 14. Ba5 {[%emt 0:02:23]} Nxd5 {[%emt 0:11:46]} 15. Qxd5 {[%emt 0:02:24]} Rc5 {[%emt 0:01:56]} 16. Qd1 {[%emt 0:05:07]} d5 {[%emt 0:16:21]} 17. Bb4 {[%emt 0:03:41]} Rxc4 {[%emt 0:04:28]} 18. Bxc4 {[%emt 0:00:30]} Bxb4 {[%emt 0:00:29]} 19. Qxd5 {[%emt 0:00:02]} Qxd5 {[%emt 0:01:48]} 20. Bxd5 {[%emt 0:00:02]} Bc5 {[%emt 0:00:22]} 21. Bxb7 {[%emt 0:00:08]} a5 {[%emt 0:00:08]} 22. f3 {[%emt 0:03:08]} Nf6 {[%emt 0:00:15]} 23. O-O-O {[%emt 0:00:26]} Ke7 {[%emt 0:00:11]} 24. Rhe1 {[%emt 0:00:42]} Ke6 {[%emt 0:00:56]} 25. Ba6 {[%emt 0:01:02]} Kf5 {[%emt 0:08:05]} 26. a3 {[%emt 0:03:36]} h5 {[%emt 0:01:11]} 27. b4 {[%emt 0:01:22]} Be7 {[%emt 0:01:17]} 28. Kc2 {[%emt 0:01:27]} Ra8 {[%emt 0:02:05]} 29. Bd3+ {[%emt 0:00:11]} Kf4 {[%emt 0:00:17]} 30. Be4 {[%emt 0:00:12]} Rc8 {[%emt 0:00:46]} 31. g3+ {[%emt 0:00:19]} Kg5 {[%emt 0:00:18]} 32. bxa5 {[%emt 0:02:41]} Bxa3 {[%emt 0:00:58]} 33. a6 {[%emt 0:00:46]} Bc5 {[%emt 0:00:29]} 34. Bb7 {[%emt 0:00:26]} Re8 {[%emt 0:00:22]} 35. f4+ {[%emt 0:00:01]} Kf5 {[%emt 0:01:27]} 36. Rxe5+ {[%emt 0:01:59]} Rxe5 {[%emt 0:00:10]} 37. fxe5 {[%emt 0:00:02]} Kxe5 {[%emt 0:02:39]} 38. Kb3 {[%emt 0:00:38]} h4 {[%emt 0:00:36]} 39. Kc4 {[%emt 0:00:59]} Ba7 {[%emt 0:00:14]} 40. Kb5 {[%emt 0:00:30]} hxg3 {[%emt 0:02:35]} 41. hxg3 {[%emt 0:00:02]} g5 {[%emt 0:01:52]} 42. c4 {[%emt 0:00:26]} Kf5 {[%emt 0:02:54]} 43. Bf3 {[%emt 0:00:28]} g4 {[%emt 0:00:14]} 44. Bg2 {[%emt 0:00:57]} Ke6 {[%emt 0:03:46]} 45. Kc6 {[%emt 0:00:30]} Bf2 {[%emt 0:00:40]} 46. c5 {[%emt 0:00:25]} Ng8 {[%emt 0:01:13]} 47. Rd6+ {[%emt 0:00:45]} Ke5 {[%emt 0:00:18]} 48. Rd7 {[%emt 0:00:35]} f5 {[%emt 0:00:32]} 49. a7 {[%emt 0:00:22]} Bxg3 {[%emt 0:00:15]} 50. a8=Q {[%emt 0:00:19]} Nf6 {[%emt 0:00:23]} 51. Qa1+ {[%emt 0:00:03]} Ke6 {[%emt 0:00:15]} 52. Bd5+ {[%emt 0:00:46]} Nxd5 {[%emt 0:00:18]} 53. Rxd5 {[%emt 0:00:11]} 1-0

[Event "Baden Youth-ch 2020"]
[Site "Karlsruhe-Durlach"]
[Date "2020.01.05"]
[Round "5.8"]
[White "Schmider, Niklas"]
[Black "Metzinger, Hannes"]
[Result "1-0"]
[ECO "B28"]
[WhiteElo "2298"]
[BlackElo "1903"]
[Annotator "ChessBase"]
[PlyCount "59"]
[EventDate "2020.01.02"]
[EventType "swiss"]
[EventCountry "GER"]
[SourceTitle "playchess.com"]
[Source "ChessBase"]
[SourceQuality "1"]
[TimeControl "5400+30"]

1. e4 {[%emt 0:00:00]} c5 {[%emt 0:00:00]} 2. Nf3 {[%emt 0:00:00]} a6 {[%emt 0:00:00]} 3. c3 {[%emt 0:00:50]} Qa5 {[%emt 0:00:00]} 4. Be2 {[%emt 0:10:40]} d6 {[%emt 0:00:00]} 5. O-O {[%emt 0:09:05]} Nf6 {[%emt 0:00:00]} 6. d3 {[%emt 0:01:13]} Qc7 {[%emt 0:00:04]} 7. Re1 {[%emt 0:02:09]} h6 {[%emt 0:00:05]} 8. Bf1 {[%emt 0:02:05]} Bg4 {[%emt 0:00:07]} 9. Be3 {[%emt 0:07:15]} Nc6 {[%emt 0:01:03]} 10. Nbd2 {[%emt 0:00:28]} g5 {[%emt 0:01:46]} 11. d4 {[%emt 0:08:46]} e5 {[%emt 0:01:32]} 12. dxc5 {[%emt 0:04:37]} dxc5 {[%emt 0:00:06]} 13. Be2 {[%emt 0:02:18]} O-O-O {[%emt 0:04:37]} 14. Qa4 {[%emt 0:06:49]} Be6 {[%emt 0:11:00]} 15. Bc4 {[%emt 0:15:55]} Ng4 {[%emt 0:06:21]} 16. Bxe6+ {[%emt 0:25:50]} fxe6 {[%emt 0:00:16]} 17. Nc4 {[%emt 0:00:00]} Nxe3 {[%emt 0:00:42]} 18. Nxe3 {[%emt 0:00:00]} Kb8 {[%emt 0:05:21]} 19. Rad1 {[%emt 0:00:00]} Bd6 {[%emt 0:00:31]} 20. a3 {[%emt 0:00:00]} Qe7 {[%emt 0:03:50]} 21. b4 {[%emt 0:00:00]} Rdg8 {[%emt 0:02:47]} 22. b5 {[%emt 0:00:00]} axb5 {[%emt 0:00:06]} 23. Qxb5 {[%emt 0:00:00]} g4 {[%emt 0:00:08]} 24. Nd2 {[%emt 0:00:00]} c4 {[%emt 0:19:12]} 25. Ndxc4 {[%emt 0:00:00]} Bc5 {[%emt 0:00:07]} 26. Rb1 {[%emt 0:00:00]} Nd8 {[%emt 0:00:21]} 27. Nxe5 {[%emt 0:00:00]} Rh7 {[%emt 0:03:13]} 28. Red1 {[%emt 0:00:00]} g3 {[%emt 0:01:45]} 29. Rxd8+ {[%emt 0:00:00]} Ka7 {[%emt 0:03:20]} 30. Qa5# {[%emt 0:00:00]} 1-0

[Event "Baden Youth-ch 2020"]
[Site "Karlsruhe-Durlach"]
[Date "2020.01.05"]
[Round "5.9"]
[White "Wagner, Lena"]
[Black "Schneider, Xenia"]
[Result "0-1"]
[ECO "B12"]
[WhiteElo "1289"]
[BlackElo "1332"]
[Annotator "NA"]
[PlyCount "71"]
[EventDate "2020.01.02"]
[EventType "swiss"]
[EventCountry "GER"]
[SourceTitle "playchess.com"]
[Source "ChessBase"]
[SourceQuality "1"]
[TimeControl "5400+30"]

1. d4 {[%emt 0:00:00]} c6 {[%emt 0:00:00]} 2. e4 {[%emt 0:00:00]} d5 {[%emt 0:00:00]} 3. e5 {[%emt 0:00:11]} Bf5 {[%emt 0:00:02]} 4. Bd3 {[%emt 0:00:15]} Bxd3 {[%emt 0:00:38]} 5. Qxd3 {[%emt 0:00:20]} e6 {[%emt 0:01:55]} 6. Nf3 {[%emt 0:00:51]} Qa5+ {[%emt 0:11:40]} 7. Bd2 {[%emt 0:03:14]} Qb6 {[%emt 0:00:08]} 8. Qb3 {[%emt 0:03:33]} Qa6 {[%emt 0:05:54]} 9. Bb4 {[%emt 0:07:17]} c5 {[%emt 0:05:51]} 10. dxc5 {[%emt 0:06:58]} Nd7 {[%emt 0:00:20]} 11. Nbd2 {[%emt 0:06:49]} Bxc5 {[%emt 0:04:30]} 12. c4 {[%emt 0:03:48]} Ne7 {[%emt 0:06:00]} 13. O-O {[%emt 0:03:50]} O-O {[%emt 0:04:08]} 14. Bxc5 {[%emt 0:06:06]} Nxc5 {[%emt 0:00:25]} 15. Qc2 {[%emt 0:03:41]} Rac8 {[%emt 0:04:55]} 16. Rfc1 {[%emt 0:07:12]} Nd7 {[%emt 0:04:47]} 17. b3 {[%emt 0:05:44]} b5 {[%emt 0:13:51]} 18. cxb5 {[%emt 0:06:33]} Qxb5 {[%emt 0:00:36]} 19. Qb2 {[%emt 0:00:48]} Nc5 {[%emt 0:08:28]} 20. Nd4 {[%emt 0:08:21]} Qa6 {[%emt 0:00:49]} 21. Rc2 {[%emt 0:08:12]} Nd3 {[%emt 0:00:42]} 22. Qb1 {[%emt 0:01:03]} Nxe5 {[%emt 0:00:38]} 23. Qe1 {[%emt 0:04:11]} N7g6 {[%emt 0:06:50]} 24. Qe3 {[%emt 0:02:59]} Nd3 {[%emt 0:08:21]} 25. N2f3 {[%emt 0:01:34]} e5 {[%emt 0:03:36]} 26. Rxc8 {[%emt 0:00:36]} Rxc8 {[%emt 0:00:18]} 27. Nf5 {[%emt 0:00:46]} d4 {[%emt 0:01:30]} 28. Qd2 {[%emt 0:00:44]} f6 {[%emt 0:02:58]} 29. Rd1 {[%emt 0:01:25]} Nc5 {[%emt 0:02:02]} 30. h4 {[%emt 0:01:19]} Kf7 {[%emt 0:00:37]} 31. Qb4 {[%emt 0:02:25]} Rc6 {[%emt 0:00:49]} 32. g4 {[%emt 0:02:28]} Qe2 {[%emt 0:01:11]} 33. Nxe5+ {[%emt 0:02:10]} fxe5 {[%emt 0:00:27]} 34. Re1 {[%emt 0:00:42]} Qxg4+ {[%emt 0:00:09]} 35. Kf1 {[%emt 0:00:32]} Qxf5 {[%emt 0:00:58]} 36. Qb8 {[%emt 0:01:23]} 0-1

[Event "Baden Youth-ch 2020"]
[Site "Karlsruhe-Durlach"]
[Date "2020.01.05"]
[Round "5.10"]
[White "Ehmann, Johanna"]
[Black "Grining, Maria"]
[Result "1/2-1/2"]
[ECO "D42"]
[WhiteElo "1846"]
[BlackElo "1744"]
[Annotator "NA"]
[PlyCount "42"]
[EventDate "2020.01.02"]
[EventType "swiss"]
[EventCountry "GER"]
[SourceTitle "playchess.com"]
[Source "ChessBase"]
[SourceQuality "1"]
[TimeControl "5400+30"]

{[%evp 8,24,12,1,8,7,23,19,14,14,22,23,32767,32767,32767,10,43,58,71]} 1. e4 {[%emt 0:00:00]} c6 {[%emt 0:00:00]} 2. c4 {[%emt 0:00:00]} d5 {[%emt 0:00:00]} 3. exd5 {[%emt 0:00:00]} cxd5 {[%emt 0:00:00]} 4. cxd5 {[%emt 0:00:00]} Nf6 {[%emt 0:00:00]} 5. Nc3 {[%emt 0:00:22]} Nxd5 {[%emt 0:00:32]} 6. Nf3 {[%emt 0:00:17]} e6 {[%emt 0:00:15]} 7. d4 {[%emt 0:01:33]} Be7 {[%emt 0:00:09]} 8. Bd3 {[%emt 0:01:18]} O-O {[%emt 0:03:05]} 9. O-O {[%emt 0:03:08]} Nc6 {[%emt 0:06:16]} 10. Re1 {[%emt 0:06:42]} Bf6 {[%emt 0:12:05]} 11. Bb1 {[%emt 0:08:16]} Nde7 {[%emt 0:06:09]} 12. Bg5 {[%emt 0:15:57]} Ng6 $16 {[%emt 0:08:51]} 13. Bxf6 {[%emt 0:19:09]} Qxf6 {[%emt 0:00:14]} 14. d5 {[%emt 0:02:12]} exd5 {[%emt 0:03:42]} 15. Qxd5 {[%emt 0:03:37]} Bg4 {[%emt 0:12:21]} 16. Qg5 {[%emt 0:04:04]} Qxg5 {[%emt 0:05:57]} 17. Nxg5 {[%emt 0:00:06]} Rfe8 {[%emt 0:00:39]} 18. Be4 {[%emt 0:01:35]} h6 {[%emt 0:01:14]} 19. Nf3 {[%emt 0:01:07]} Rad8 {[%emt 0:02:29]} 20. Rad1 {[%emt 0:08:58]} Rxd1 {[%emt 0:03:50]} 21. Rxd1 {[%emt 0:00:40]} Nge5 {[%emt 0:01:45]} 1/2-1/2

[Event "Baden Youth-ch 2020"]
[Site "Karlsruhe-Durlach"]
[Date "2020.01.05"]
[Round "6.1"]
[White "Hecht, Jonas"]
[Black "Wehrle, Valentin"]
[Result "1-0"]
[ECO "E66"]
[WhiteElo "1754"]
[BlackElo "1364"]
[Annotator "NA"]
[PlyCount "43"]
[EventDate "2020.01.02"]
[EventType "swiss"]
[EventCountry "GER"]
[SourceTitle "playchess.com"]
[Source "ChessBase"]
[SourceQuality "1"]
[TimeControl "5400+30"]

1. c4 {[%emt 0:00:00]} Nf6 {[%emt 0:00:00]} 2. Nc3 {[%emt 0:00:03]} g6 {[%emt 0:00:03]} 3. g3 {[%emt 0:00:30]} Bg7 {[%emt 0:00:30]} 4. Bg2 {[%emt 0:00:30]} O-O {[%emt 1:31:27]} 5. Nf3 d6 {[%emt 0:00:00]} 6. O-O {[%emt 0:00:00]} c5 {[%emt 0:00:00]} 7. d4 {[%emt 0:01:44]} Nc6 {[%emt 0:00:00]} 8. d5 {[%emt 0:10:46]} Na5 {[%emt 0:00:00]} 9. Qd3 {[%emt 0:02:56]} b6 {[%emt 0:00:00]} 10. e4 {[%emt 0:08:26]} Bd7 {[%emt 0:00:00]} 11. Nh4 {[%emt 0:05:46]} Ng4 {[%emt 0:00:00]} 12. Nf3 {[%emt 0:03:38]} f5 {[%emt 0:00:00]} 13. h3 {[%emt 0:06:15]} Ne5 {[%emt 0:00:00]} 14. Nxe5 {[%emt 0:00:28]} Bxe5 {[%emt 0:00:00]} 15. Bh6 {[%emt 0:03:41]} Bg7 {[%emt 0:00:00]} 16. Bxg7 {[%emt 0:00:44]} Kxg7 {[%emt 0:00:00]} 17. Rfe1 {[%emt 0:02:13]} a6 {[%emt 0:00:00]} 18. e5 {[%emt 0:02:00]} Ra7 {[%emt 0:00:00]} 19. e6 {[%emt 0:00:45]} Be8 {[%emt 0:00:00]} 20. g4 {[%emt 0:03:33]} Qb8 {[%emt 0:00:00]} 21. Ne2 {[%emt 0:01:14]} b5 {[%emt 0:00:00]} 22. Qc3+ {[%emt 0:00:02]} 1-0

[Event "Baden Youth-ch 2020"]
[Site "Karlsruhe-Durlach"]
[Date "2020.01.05"]
[Round "6.2"]
[White "Ljuca, Semir"]
[Black "Haenselmann, Hendrik"]
[Result "0-1"]
[ECO "B45"]
[WhiteElo "1397"]
[BlackElo "1807"]
[Annotator "NA"]
[PlyCount "73"]
[EventDate "2020.01.02"]
[EventType "swiss"]
[EventCountry "GER"]
[SourceTitle "playchess.com"]
[Source "ChessBase"]
[SourceQuality "1"]
[TimeControl "5400+30"]

1. e4 {[%emt 0:00:00]} c5 {[%emt 0:00:00]} 2. Nf3 {[%emt 0:00:00]} e6 {[%emt 0:00:00]} 3. d4 {[%emt 0:00:00]} cxd4 {[%emt 0:00:00]} 4. Nxd4 {[%emt 0:00:00]} Nf6 {[%emt 0:00:00]} 5. Nc3 {[%emt 0:00:00]} Nc6 {[%emt 0:00:00]} 6. Nxc6 {[%emt 0:01:08]} bxc6 {[%emt 0:00:03]} 7. Bg5 {[%emt 0:01:40]} e5 {[%emt 0:00:29]} 8. Be2 {[%emt 0:02:53]} Be7 {[%emt 0:00:47]} 9. Qd2 {[%emt 0:01:48]} h6 {[%emt 0:02:49]} 10. Bxf6 {[%emt 0:04:33]} Bxf6 {[%emt 0:00:29]} 11. O-O {[%emt 0:01:27]} O-O {[%emt 0:00:41]} 12. Rfd1 {[%emt 0:02:23]} Be7 {[%emt 0:02:52]} 13. Bg4 {[%emt 0:04:03]} d6 {[%emt 0:02:06]} 14. Bxc8 {[%emt 0:03:44]} Rxc8 {[%emt 0:00:21]} 15. Kh1 {[%emt 0:02:06]} f5 {[%emt 0:01:42]} 16. f4 {[%emt 0:07:01]} fxe4 {[%emt 0:00:50]} 17. fxe5 {[%emt 0:01:18]} d5 {[%emt 0:00:45]} 18. Rf1 {[%emt 0:04:29]} Qc7 {[%emt 0:04:43]} 19. Qd4 {[%emt 0:04:57]} Bg5 {[%emt 0:01:25]} 20. e6 {[%emt 0:03:58]} Rce8 {[%emt 0:03:11]} 21. Qc5 {[%emt 0:03:40]} Qc8 {[%emt 0:04:13]} 22. Qxa7 {[%emt 0:08:31]} Qxe6 {[%emt 0:00:21]} 23. Qd4 {[%emt 0:06:28]} Bf6 {[%emt 0:01:45]} 24. Qd2 {[%emt 0:05:43]} Rf7 {[%emt 0:03:59]} 25. Qe2 {[%emt 0:06:19]} Ref8 {[%emt 0:05:01]} 26. Rab1 {[%emt 0:02:32]} Bd4 {[%emt 0:02:31]} 27. Rxf7 {[%emt 0:22:49]} Qxf7 {[%emt 0:00:17]} 28. h3 {[%emt 0:00:00]} Qf2 {[%emt 0:01:36]} 29. Rc1 {[%emt 0:00:00]} e3 {[%emt 0:04:01]} 30. Qxf2 {[%emt 0:00:00]} Rxf2 {[%emt 0:02:03]} 31. Re1 {[%emt 0:00:00]} Rxc2 {[%emt 0:01:23]} 32. Nd1 {[%emt 0:00:00]} e2 {[%emt 0:01:34]} 33. Nc3 {[%emt 0:00:00]} Rxb2 {[%emt 0:00:22]} 34. Rxe2 {[%emt 0:00:00]} Bxc3 {[%emt 0:00:11]} 35. Rxb2 {[%emt 0:00:00]} Bxb2 {[%emt 0:00:08]} 36. g4 {[%emt 0:00:00]} Ba3 {[%emt 0:00:30]} 37. Kg2 {[%emt 0:05:00]} 0-1

[Event "Baden Youth-ch 2020"]
[Site "Karlsruhe-Durlach"]
[Date "2020.01.05"]
[Round "6.3"]
[White "Lim, Huay Leon Warren"]
[Black "Neves, Carlos"]
[Result "0-1"]
[ECO "B34"]
[WhiteElo "1591"]
[BlackElo "1438"]
[Annotator "NA"]
[PlyCount "78"]
[EventDate "2020.01.02"]
[EventType "swiss"]
[EventCountry "GER"]
[SourceTitle "playchess.com"]
[Source "ChessBase"]
[SourceQuality "1"]
[TimeControl "5400+30"]

1. e4 {[%emt 0:00:00]} c5 {[%emt 0:00:00]} 2. Nf3 {[%emt 0:00:00]} Nc6 {[%emt 0:00:00]} 3. d4 {[%emt 0:00:10]} cxd4 {[%emt 0:00:00]} 4. Nxd4 {[%emt 0:00:05]} g6 {[%emt 0:00:00]} 5. Nb3 {[%emt 0:01:28]} Bg7 {[%emt 0:01:10]} 6. Be3 {[%emt 0:01:42]} Nf6 {[%emt 0:01:14]} 7. Nc3 {[%emt 0:00:33]} O-O {[%emt 0:00:47]} 8. Bd3 {[%emt 0:03:08]} d5 {[%emt 0:08:00]} 9. Nd4 {[%emt 0:07:35]} e5 {[%emt 0:14:10]} 10. Nxc6 {[%emt 0:01:44]} bxc6 {[%emt 0:00:14]} 11. Bg5 {[%emt 0:01:05]} Bb7 {[%emt 0:08:32]} 12. O-O {[%emt 0:01:26]} Qc7 {[%emt 0:01:55]} 13. Bxf6 {[%emt 0:02:06]} Bxf6 {[%emt 0:00:13]} 14. Qf3 {[%emt 0:00:38]} Qd6 {[%emt 0:02:01]} 15. exd5 {[%emt 0:05:39]} cxd5 {[%emt 0:01:01]} 16. Nb5 {[%emt 0:08:14]} Qb6 {[%emt 0:03:45]} 17. Nc7 {[%emt 0:08:22]} Rad8 {[%emt 0:17:14]} 18. Rfd1 {[%emt 0:06:26]} d4 {[%emt 0:01:56]} 19. Be4 {[%emt 0:06:41]} Bxe4 {[%emt 0:00:19]} 20. Qxe4 {[%emt 0:00:31]} Qxc7 {[%emt 0:00:08]} 21. a3 {[%emt 0:04:53]} Rc8 {[%emt 0:09:58]} 22. Rd2 {[%emt 0:04:11]} Bg7 {[%emt 0:06:25]} 23. g3 {[%emt 0:01:04]} Qc6 {[%emt 0:03:28]} 24. f3 {[%emt 0:06:07]} Qxe4 {[%emt 0:00:33]} 25. fxe4 {[%emt 0:00:11]} f5 {[%emt 0:00:41]} 26. b4 {[%emt 0:03:57]} fxe4 {[%emt 0:02:46]} 27. Re2 {[%emt 0:01:10]} d3 {[%emt 0:00:31]} 28. cxd3 {[%emt 0:01:24]} exd3 {[%emt 0:00:09]} 29. Rd2 {[%emt 0:00:21]} e4 {[%emt 0:00:06]} 30. Re1 {[%emt 0:00:47]} Bc3 {[%emt 0:00:20]} 31. Red1 {[%emt 0:01:14]} Bxd2 {[%emt 0:00:19]} 32. Rxd2 {[%emt 0:00:09]} e3 {[%emt 0:00:14]} 33. Rxd3 {[%emt 0:01:04]} e2 {[%emt 0:00:09]} 34. Re3 {[%emt 0:00:10]} Rce8 {[%emt 0:00:07]} 35. Rxe8 {[%emt 0:01:00]} Rxe8 {[%emt 0:00:08]} 36. Kg2 {[%emt 0:00:28]} e1=Q {[%emt 0:00:23]} 37. Kh3 {[%emt 0:00:13]} Re4 {[%emt 0:00:16]} 38. Kg2 {[%emt 0:00:37]} Qe2+ {[%emt 0:00:10]} 39. Kg1 {[%emt 0:00:27]} Rd4 {[%emt 0:00:10]} 0-1